Cogmind - Beta 10.2 --- EXPLORER MODE // 2020.10.30 @ 19:47:09 // Halloween2020/ForbiddenLore Player: adark Result: Destroyed by G-34 Mercenary with Small Laser Performance ------------- Evolutions (1) 500 Regions Visited (2) 400 Robots Destroyed (11) 55 Value Destroyed (341) 341 Prototype IDs (0) 0 Alien Tech Used (0) 0 Bonus (0) 0 TOTAL SCORE: 1296 Bonus ------- None Cogmind --------- Core Integrity 0/400 Matter 203/300 Energy 76/100 System Corruption 0% Temperature Cool (6) Movement Walking (130) Location -9/Materials Parts ------- > --- POWER (2) -------- (None) > --- PROPULSION (2) --- Titanium Leg Titanium Leg > --- UTILITY (4) ------ Improved Heat Sink High-capacity Storage Unit Seismic Analyzer > --- WEAPON (2) ------- (None) > --- INVENTORY (12) --- Medium Storage Unit Hardened Medium Armor Plating Medium Laser Medium Laser Beam Rifle Peak State ------------ > --- POWER ------------ Ion Engine Light Nuclear Core > --- PROPULSION ------- Aluminum Leg Aluminum Leg > --- UTILITY ---------- High-capacity Storage Unit Seismic Analyzer Light Armor Plating > --- WEAPON ----------- Beam Rifle Beam Rifle > --- INVENTORY -------- Aluminum Leg Medium Storage Unit Medium Laser Medium Laser Beam Rifle Beam Rifle Mining Laser [Rating: 13] Favorites ----------- Power Ion Engine Engine Ion Engine Power Core Light Nuclear Core Propulsion Aluminum Leg Leg Aluminum Leg Utility Seismic Analyzer Device Improved Heat Sink Storage High-capacity Storage Unit Processor Seismic Analyzer Protection Light Armor Plating Weapon Beam Rifle Energy Gun Beam Rifle Special Weapon Mining Laser Build | -11 -10 -9 ------- Run | Scr Mat Mat Slots Evolved 3 | . 1 2 Power 1 | . . 1 Propulsion . | . . . Utility 2 | . 1 1 Weapon . | . . . Parts Attached 19 | 7 4 8 Power 2 | 1 . 1 Engine 1 | 1 . . Core 1 | . . 1 Reactor . | . . . Propulsion 5 | 2 . 3 Treads . | . . . Leg 5 | 2 . 3 Wheel . | . . . Hover . | . . . Flight . | . . . Utility 6 | 2 2 2 Device 2 | . . 2 Storage 2 | 1 1 . Processor 1 | . 1 . Hackware . | . . . Protection 1 | 1 . . Artifact . | . . . Weapon 6 | 2 2 2 Energy Gun 5 | 2 2 1 Energy Cannon . | . . . Ballistic Gun . | . . . Ballistic Cannon . | . . . Launcher . | . . . Special Weapon 1 | . . 1 Impact Weapon . | . . . Slashing Weapon . | . . . Piercing Weapon . | . . . Special Melee Weapon . | . . . Unidentified Prototypes . | . . . Parts Lost 11 | . . 11 Power 2 | . . 2 Propulsion 3 | . . 3 Utility 2 | . . 2 Weapon 4 | . . 4 Highest Loss Streak 4 | . . 4 Average Slot Usage (%) 83 | . 100 73 Engine 6 | . 12 3 Core 3 | . . 5 Leg 19 | . 25 16 Device 5 | . . 9 Storage 10 | . 12 10 Processor 10 | . 12 10 Protection 7 | . 12 4 Energy Gun 16 | . 25 11 Special Weapon 2 | . . 4 Naked Turns . | . . . Heaviest Build 51 | 20 46 51 Greatest Support 34 | 20 20 34 Greatest Overweight (x) 11 | 6 2 11 Average Overweight (x) 1 | . . 2 Largest Inventory Capacity 12 | 8 12 12 Average Capacity 10 | 6 8 12 Most Carried 8 | 1 8 7 Average Carried 5 | . 5 5 Final Capacity 12 | 8 12 12 Final Carried 8 | 1 8 5 Class Distribution -------------------- 100% | Hacker-Mutant Dominant Class ---------------- Hacker-Mutant | -10/Materials Hacker-Mutant | -9/Materials Resources | -11 -10 -9 ----------- Run | Scr Mat Mat Matter Collected 253 | 97 . 156 Remotely . | . . . Salvage Created 397 | . 170 227 Parts 21 | . 9 12 Haulers Intercepted . | . . . Recyclers Shooed . | . . . Parts Field Recycled . | . . . Retrieved Matter . | . . . Parts Self-Destructed . | . . . Prevented . | . . . Kills | -11 -10 -9 ------- Run | Scr Mat Mat Combat Hostiles Destroyed 10 | . 4 6 Guns 9 | . 4 5 Cannons 1 | . . 1 Classes Destroyed 4 | . 1 3 Worker 1 | . . 1 Swarmer 2 | . . 2 Grunt 6 | . 4 2 Sentry 2 | . . 2 Best Kill Streak 5 | . 3 5 Combat Bots Only 4 | . 3 4 Max Kills in Single Turn 1 | . 1 1 Gunslinging . | . . . Exploded . | . . . Melee . | . . . Uniques/NPCs Destroyed . | . . . Combat | -11 -10 -9 -------- Run | Scr Mat Mat Damage Taken 1257 | . 181 1076 Core 411 | . 11 400 Absorbed by Shields . | . . . Core Remaining (%) 97 | 100 95 . Volleys Fired 35 | . 16 19 Largest 2 | . 2 2 Hottest 156 | . 112 156 Shots Fired 52 | . 31 21 Gun 50 | . 31 19 Cannon . | . . . Launcher . | . . . Special 2 | . . 2 Kinetic . | . . . Thermal 52 | . 31 21 Explosive . | . . . Electromagnetic . | . . . Robot Hit Streak 15 | . 15 8 Robot Miss Streak 1 | . 1 1 Penetration Max . | . . . Secondary Targets . | . . . Shots Hit Robots 43 | . 27 16 Core Hits 18 | . 9 9 Critical Hits . | . . . Critical Kills . | . . . Critical Parts Destroyed . | . . . Melee Attacks . | . . . Impact . | . . . Slashing . | . . . Piercing . | . . . Sneak Attacks . | . . . Combat Hostiles . | . . . Follow-up Attacks . | . . . Damage Inflicted 648 | . 360 288 Guns 596 | . 360 236 Cannons . | . . . Explosions . | . . . Melee . | . . . Ramming 4 | . . 4 Kinetic . | . . . Thermal 644 | . 360 284 Explosive . | . . . Electromagnetic . | . . . Impact . | . . . Slashing . | . . . Piercing . | . . . Highest Corruption . | . . . Average Corruption . | . . . Corruption Purged . | . . . Overload Shots . | . . . Overflow Damage . | . . . Projectiles . | . . . Explosions . | . . . Melee . | . . . Knockbacks . | . . . Impact . | . . . Kinetic . | . . . Secondary . | . . . Self-Inflicted Damage 2 | . . 2 Shots . | . . . Rammed 1 | . . 1 Targets Rammed 1 | . . 1 Kicked . | . . . Crushed . | . . . Highest Temperature 546 | . 546 399 Average Temperature 201 | . 227 158 Received Heat Transfer 951 | . 171 780 Effects 13 | . 10 3 Shutdowns 2 | . 1 1 Energy Bleed 4 | . 2 2 Interference 5 | . 5 . Matter Decay 1 | . 1 . Damage (minor) 1 | . 1 . Siege Activations . | . . . Robots Corrupted . | . . . Combat Hostiles . | . . . Parts Fried . | . . . Impact Corruptions . | . . . Robots Melted . | . . . Combat Hostiles . | . . . Parts Melted 2 | . 2 . Heat Transferred 1617 | . 925 692 Parts Sabotaged . | . . . Parts Stolen . | . . . Parts Stripped . | . . . Power Chain Reactions . | . . . Missiles Intercepted . | . . . Alert | -11 -10 -9 ------- Run | Scr Mat Mat Peak Influence 231 | . 122 231 Initial 36 | . . 36 Average 91 | . 55 123 Maximum Alert Level 1 | . . 1 Low Security (%) 77 | 100 100 61 Level 1 22 | . . 38 Level 2 . | . . . Level 3 . | . . . Level 4 . | . . . Level 5 . | . . . High Security . | . . . Max Security . | . . . Squads Dispatched 4 | . . 4 Investigation 1 | . . 1 Extermination . | . . . Reinforcement 3 | . . 3 Assault . | . . . Garrison . | . . . Intercept . | . . . Construction Impeded . | . . . Haulers Reinforced . | . . . Stealth | -11 -10 -9 --------- Run | Scr Mat Mat Distress Signals 3 | . . 3 Communications Jammed . | . . . Distress Signals . | . . . Times Spotted 32 | . 7 25 Peak Tracking Total 10 | . 3 10 Tactical Retreats 2 | . 1 1 Traps | -11 -10 -9 ------- Run | Scr Mat Mat Traps Triggered . | . . . Indirectly . | . . . Trap Hack Attempts . | . . . Triggered . | . . . Disarmed . | . . . Reprogrammed . | . . . Reused . | . . . Traps Extracted . | . . . Installed . | . . . Triggered . | . . . Machines | -11 -10 -9 ---------- Run | Scr Mat Mat Machines Disabled . | . . . Max in Single Turn . | . . . Machines Sabotaged . | . . . Garrisons Compromised . | . . . Overloaded Fab Kills . | . . . Fab Network Shutdowns . | . . . Hacking | -11 -10 -9 --------- Run | Scr Mat Mat Machines Accessed 4 | . 2 2 Terminals 3 | . 2 1 Fabricators . | . . . Repair Stations . | . . . Recycling Units 1 | . . 1 Scanalyzers . | . . . Garrison Access . | . . . Total Hacks 13 | . 8 5 Successful 8 | . 5 3 Failed 5 | . 3 2 Catastrophic . | . . . Database Lockouts . | . . . Manual 15 | . 10 5 Terminals 12 | . 8 4 Fabricators . | . . . Repair Stations . | . . . Recycling Units 1 | . . 1 Scanalyzers . | . . . Garrison Access . | . . . Terminal Hacks 2 | . 2 . Record 1 | . 1 . Zone Layout 1 | . 1 . Fabricator Hacks . | . . . Repair Station Hacks . | . . . Recycling Unit Hacks . | . . . Scanalyzer . | . . . Garrison Access Hacks . | . . . Unauthorized Hacks 6 | . 3 3 Terminals 5 | . 3 2 Assimilate 2 | . 1 1 Botnet 3 | . 2 1 Fabricators . | . . . Repair Stations . | . . . Recycling Units 1 | . . 1 Tunnel 1 | . . 1 Scanalyzers . | . . . Garrison Access . | . . . Data Cores Recovered . | . . . Used . | . . . Hacking Detections 3 | . 2 1 Full Trace Events . | . . . Feedback Events . | . . . Feedback Blocked . | . . . Robot Schematics Acquired . | . . . Robots Built . | . . . Matter . | . . . Time . | . . . Total Robot Build Rating . | . . . Part Schematics Acquired . | . . . Parts Built . | . . . Matter . | . . . Time . | . . . Total Part Build Rating . | . . . Parts Repaired . | . . . Time . | . . . Parts Recycled . | . . . Recycled Matter . | . . . Retrieved Matter . | . . . Retrieved Components . | . . . Parts Scanalyzed . | . . . Part Schematics Acquired . | . . . Parts Damaged . | . . . Bothacking | -11 -10 -9 ------------ Run | Scr Mat Mat Used RIF Installer . | . . . Robots Hacked . | . . . Non-combat . | . . . Combat . | . . . Robot Hacks Applied . | . . . Relay Couplers Released . | . . . Robots Rewired . | . . . Allies Hacked . | . . . Hacks Repelled . | . . . Allies | -11 -10 -9 -------- Run | Scr Mat Mat Total Allies . | . . . Largest Group . | . . . Highest-Rated Group . | . . . Highest-Rated Ally . | . . . Total Orders . | . . . Ally Attacks . | . . . Total Damage . | . . . Kills . | . . . Allies Corrupted . | . . . Allies Melted . | . . . Intel | -11 -10 -9 ------- Run | Scr Mat Mat Robot Analysis Total . | . . . Derelict Logs Recovered . | . . . Drone Launches . | . . . Drone Recoveries . | . . . Exploration | -11 -10 -9 ------------- Run | Scr Mat Mat Turns Passed 835 | 57 293 485 Spaces Moved 383 | 32 143 208 Core 21 | 11 . 10 Treads . | . . . Legs 362 | 21 143 198 Wheels . | . . . Hover . | . . . Flight . | . . . Fastest Speed 50 | 50 120 130 Average Speed 169 | 143 147 188 Slowest Speed 600 | 350 180 600 Overloaded Moves . | . . . Propulsion Burnouts . | . . . Robots Hopped . | . . . Cave-ins Triggered . | . . . Exploration Rate (%) 24 | 4 35 34 Regions Visited 2 Branch Regions . Pre-discovered Areas 1 | . . 1 Known Exits Taken 2 | 1 1 . Unknown Exits Taken . | . . . Scrap Searched . | . . . Spaces Dug . | . . . Terrain Destroyed . | . . . Melee . | . . . Projectile . | . . . AOE . | . . . Terrain Rammed . | . . . Walls Destroyed . | . . . Machines Disabled . | . . . Actions | -11 -10 -9 --------- Run | Scr Mat Mat Total 504 | 39 192 273 Wait 61 | . 25 36 Move 381 | 31 142 208 Hop . | . . . Pick Up 7 | 1 5 1 Fast Attach 11 | 7 . 4 Attach 5 | . 1 4 Detach . | . . . Swap 3 | . 3 . Drop . | . . . Fire 35 | . 16 19 Melee . | . . . Ram . | . . . Kick 1 | . . 1 Crush . | . . . Escape Stasis . | . . . Rewire . | . . . Trap . | . . . Miscellaneous . | . . . Route ------- -11/Scrapyard -10/Materials -9/Materials (discovered 1 exit: *Min) History --------- Turn | Location | Event 22 | -11/Scrapyard | Identified exit to Materials 22 | -11/Scrapyard | Discovered exit to Materials (range 16) 58 | -11/Scrapyard | Entered Materials 58 | -10/Materials | Evolved 1 slot: Utility x1 309 | -10/Materials | Build established: Hacker-Mutant 323 | -10/Materials | Identified exit to Materials 323 | -10/Materials | Discovered exit to Materials (range 11) 351 | -10/Materials | Entered another Materials area 351 | -9/Materials | Evolved 2 slots: Power x1, Utility x1 556 | -9/Materials | Lost 4 parts (1p1n2w) 786 | -9/Materials | Core integrity fell below 50% 793 | -9/Materials | Identified exit to Mines 793 | -9/Materials | Discovered exit to Mines (range 14) 800 | -9/Materials | Lost 4 parts (2n2w) 825 | -9/Materials | Core integrity fell below 20% 836 | -9/Materials | Destroyed by G-34 Mercenary with Small Laser Last Messages --------------- 00715_ O-16 Technician distress signal alerts nearby ally. 00715_ O-16 Technician: "IFF HANDSHAKE FAILED. SECURING TERMINAL." 00718_ ALERT: Hostiles spotted, dispatching reinforcements to Terminal M011. 00719_ Mining Laser destroyed. 00737_ Beam Rifle destroyed. 00737_ K-01 Serf cleans the Terminal. 00762_ Aluminum Leg destroyed. 00777_ U-05 Engineer lays Concrete. 00781_ W-16 Scout distress signal alerts nearby ally. 00784_ U-05 Engineer lays Concrete. 00793_ EXIT=FOUND: MINES 00794_ U-05 Engineer lays Concrete. 00803_ G-34 Mercenary destroyed. 00804_ K-01 Serf collects debris. 00827_ Imp. Heat Sink destroyed. 00828_ U-05 Engineer lays Concrete. 00829_ Acquired Titanium Leg. 00835_ Slammed into G-34 Mercenary. Map ----- +----------------------------------------------------+ | ?????????????????????????????????????????????????? | | ?????????????????????????????????????????????????? | | ?????????????????????????????????????????????????? | | ?????????????????????????????????????????????????? | | ?????????????????????????????????????????????????? | | ?????????????????????????????????????????????????? | | ?????????????????????????????????????????????????? | | ?????????????????????????????????????????????????? | | ?????????????????????????????????????????????????? | | ?????????????????????????????????????????????????? | | ?????????????????????????????????????????????????? | | ?????????????????????????????????????????????????? | | ?????????????????????????????????????????????????? | | ?????????????????????????????????????????????????? | | ?????????????????? ??????????????????????????????? | | ????????????????# ?????????????????????????????? | | ????????????????# ?????????????????????????????? | | ????????????????# ?????????????????????????????? | | ????????????????# ?????????????????????????????? | | ????????????????# ?????????????????????????????? | | ????????????????# ?????????????????????????????? | | ??????????# ????# ?########????????????????????? | | ??????????# ???# ##==]]!!#????????????????????? | | ??????????+ ???# ## ]]!!#????????????????????? | | ??????????# ?## ##Yu g #??????#?????????????? | | ??????##### ## # gg@ ### ????????????? | | ?????? k g ???????????? | | ????? g > ??????????? | | ?????? w ?????????? | | ????????######## r##+###+### ##?????????? | | ???????????????## % ## ???????"|"|" #??????????? | | ????????????????# #? ????????|"|""???????????? | | ????????????????# ## ??????????????????????? | | ?????????######?# + //?????????????????????? " | | ?????????? ?# ## // ??????????????????????? | | ??????????""""" # #?| ??????????????????????? | | ??????????""""" # #?######??????????????#??????? | | ??????????""""" + #??######?????????????# ?????? | | ??????????""""" # #? #???????????### ###### | | ??????????""""" # #? ????????????# % | | ??????????"""""?# # ?????????????## = | | ???????????""""?# # ????????? | | ??????????? ??# + ??????????????????## ### # | | ????????######??# #????????????????????????# # | | ???????? ?## ##???????????????????????# | | ????????" """ # #???????????????????????# | | ???????"T """ # #???????????????????????+ | | ???????"" """ / T /???????????????????????# | | ??????# # #???????????????????????# | | ??????# """ # #???????????????????????# | +----------------------------------------------------+ Best States ------------- Heat Dissipation 56 Energy Generation 19 Energy Capacity 310 Matter Stores 221 Matter Capacity 300 Sight Range 16 Terrain Scan Density 60 Armor Coverage 150 Resistance: KI 35 Resistance: TH 35 Resistance: EX 35 Resistance: EM 35 Resistance: I 35 Resistance: S 35 Resistance: P 35 Evasion (%) 40 Offensive Hacking 20 Item Schematics ----------------- None Robot Schematics ------------------ None Fabricated ------------ Nothing Alien Tech Used ----------------- None Achievements -------------- None Challenges ------------ None Game ------ Seed MetafieldDimensionalMaul Manual? 0 Play Time 00:09:34 Cumulative 37.7 hours Start 2020.10.30 @ 19:40:10 End 2020.10.30 @ 19:47:09 Sessions 1 Manual Loads 0 Difficulty Explorer Special Mode Halloween2020/ForbiddenLore Game No. 87 Rogue 78 Adventurer 4 Explorer 5 Win Type - Total 0 Types 0/0/0/0/0/0/0/0/0 Lore% 32 Gallery% 43 Achievement% 29 Wizard Run 0 Options --------- ASCII 0 Keyboard 0 Movement Mouse Keybinds 0 Fullscreen 1 Font 28/SmallcapsGlow Map View 67x55 Tactical HUD 1 Map Filters NONE Filters NONE Steam 1 RUN: cb7a37d2-450c-4fb0-8cc7-3213a833b6fb